bitfinex/quotes_SOLUSD_20250717
["timestamp","ask_amount","ask_price","bid_price","bid_amount"]
[1752782866800,15.84740506,171.98,171.93,15.84740506]
[1752782867006,15.99376894,171.97,171.94,0.68]
[1752782867207,0.14636388,171.97,171.94,0.68]
[1752782867408,0.14636388,171.97,171.92,32.94]
[1752782867618,0.14636388,171.97,171.94,0.68]
[1752782868006,5.96145066,171.97,171.92,32.26]
[1752782868207,0.14636388,171.97,171.94,15.84740506]
[1752782868407,26.14636388,172.01,171.95,0.68]
[1752782868611,26.14636388,172.01,171.95,16.52740506]
[1752782868612,15.84740506,172.0,171.95,16.52740506]
[1752782868928,15.99376894,171.99,171.94,15.84740506]
[1752782869314,15.99376894,171.99,171.95,0.68]
[1752782869511,0.14636388,171.99,171.96,0.68]
[1752782869725,0.14636388,171.99,171.97,16.52740506]
[1752782870034,0.14636388,172.01,171.98,48.10740506]
[1752782870205,0.14636388,172.03,171.99,0.68]
[1752782870405,0.14636388,172.03,172.01,15.84740506]
[1752782870642,0.14636388,172.05,172.01,15.84740506]
[1752782870820,0.14636388,172.05,172.03,15.84740506]
[1752782871022,0.14636388,172.08,172.04,48.10740506]
[1752782871342,0.14636388,172.11,172.07,15.84740506]
[1752782871552,5.95573905,172.14,172.1,15.84740506]
[1752782871930,15.84740506,172.12,172.09,32.26]
[1752782872124,0.14636388,172.11,172.09,32.26]
[1752782872342,15.99376894,172.11,172.09,32.26]
[1752782873223,0.14636388,172.11,172.09,32.26]
[1752782873442,0.14636388,172.13,172.1,0.68]
[1752782874248,0.14636388,172.13,172.11,0.68]
[1752782874544,0.14636388,172.13,172.1,15.84740506]
[1752782874748,0.14636388,172.13,172.1,16.52740506]
[1752782875549,0.14636388,172.14,172.1,16.52740506]
[1752782876045,0.14636388,172.14,172.11,16.52740506]
[1752782876221,15.99376894,172.16,172.11,16.52740506]
[1752782876420,15.99376894,172.16,172.12,48.78740506]
[1752782876421,0.14636388,172.16,172.12,48.78740506]
[1752782876625,0.14636388,172.16,172.13,0.68]
[1752782877325,0.14636388,172.16,172.14,16.52740506]
[1752782877632,32.26,172.2,172.14,0.68]
[1752782877633,15.99376894,172.18,172.14,0.68]
[1752782877832,0.14636388,172.18,172.14,22.33657456]
[1752782878025,0.14636388,172.19,172.15,0.68]
[1752782878219,26.0,172.21,172.18,15.84740506]
[1752782878426,0.17636388,172.22,172.2,15.84740506]
[1752782878647,0.17636388,172.22,172.2,48.08740506]
[1752782878851,0.17636388,172.22,172.21,0.68]
[1752782879046,0.03,172.22,172.21,16.52740506]
[1752782879227,0.03,172.22,172.21,0.68]
[1752782879428,0.03,172.22,172.21,32.92]
[1752782879653,0.03,172.22,172.21,48.76740506]
[1752782879952,26.0,172.21,172.15,32.24]
[1752782880130,0.14636388,172.2,172.15,32.24]
[1752782880330,15.84740506,172.17,172.15,32.24]
[1752782880647,0.14636388,172.16,172.15,32.24]
[1752782881237,0.14636388,172.17,172.15,48.76740506]
[1752782881440,15.99376894,172.16,172.06,5.81187289]
[1752782881749,15.84740506,172.1,172.07,32.24]
[1752782882048,15.99376894,172.12,172.08,0.68]
[1752782882252,15.99376894,172.12,172.07,32.24]
[1752782882454,15.84740506,172.11,172.07,32.24]
[1752782882678,0.14636388,172.1,172.07,32.92]
[1752782882855,0.14636388,172.1,172.08,0.71]
[1752782883032,0.14636388,172.12,172.09,16.55740506]
[1752782883231,0.14636388,172.15,172.11,15.84740506]
[1752782883538,0.14636388,172.15,172.12,32.95]
[1752782883737,0.14636388,172.15,172.12,48.79740506]
[1752782884058,15.84740506,172.13,172.09,32.24]
[1752782884235,15.99376894,172.12,172.09,32.24]
[1752782884432,0.14636388,172.12,172.09,32.24]
[1752782884761,0.14636388,172.14,172.1,16.55740506]
[1752782885050,0.14636388,172.14,172.09,32.24]
[1752782885051,15.84740506,172.13,172.09,32.24]
[1752782885254,15.84740506,172.11,172.09,32.24]
[1752782885458,15.99376894,172.1,172.09,32.24]
[1752782885953,21.80434418,172.1,172.09,32.24]
[1752782886154,5.95693912,172.1,172.04,0.71]
[1752782886341,15.99376894,172.1,172.06,32.22]
[1752782886551,15.99376894,172.1,172.07,0.71]
[1752782886752,15.84740506,172.09,172.06,32.22]
[1752782886954,0.14636388,172.08,172.07,0.71]
[1752782887144,15.84740506,172.1,172.06,32.22]
[1752782887345,15.84740506,172.07,172.03,0.71]
[1752782887539,15.84740506,172.04,172.0,0.71]
[1752782887766,15.99376894,172.03,172.01,32.22]
[1752782887962,0.14636388,172.03,172.01,32.22]
[1752782888261,0.14636388,172.03,172.01,32.93]
[1752782888464,0.14636388,172.05,172.02,0.71]
[1752782888765,15.99376894,172.05,172.01,32.22]
[1752782889267,15.99376894,172.05,172.01,32.93]
[1752782889466,15.99376894,172.05,172.04,0.06]
[1752782889960,22.52603281,172.05,172.04,0.06]
[1752782891560,26.0,172.02,171.92,2.3986]
[1752782891748,15.84740506,171.98,171.92,50.46600506]
[1752782892066,15.84740506,171.96,171.92,34.6186]
[1752782892270,0.14636388,171.95,171.92,33.03]
[1752782893252,15.99376894,171.95,171.92,32.32]
[1752782893449,15.84740506,171.94,171.92,32.32]
[1752782893667,0.14636388,171.93,171.92,38.84665891]
[1752782893869,0.14636388,171.95,171.92,54.69406397]
[1752782894071,0.14636388,171.95,171.93,0.71]
[1752782894248,0.14636388,171.96,171.94,0.71]
[1752782894447,0.14636388,172.01,171.95,16.55740506]
[1752782894782,0.72,172.05,171.97,15.84740506]
[1752782894783,15.84740506,172.02,171.97,15.84740506]
[1752782894986,0.14636388,172.01,171.98,0.71]
[1752782895155,15.84740506,172.03,171.99,0.71]
[1752782895352,0.14636388,172.04,172.0,32.93]
[1752782895661,0.14636388,172.04,171.93,0.58163205]
[1752782895662,0.5,172.0,171.93,0.71]
[1752782895854,0.14636388,171.99,171.95,15.84740506]
[1752782896071,0.14636388,171.99,171.96,0.71]
[1752782896253,15.99376894,172.02,171.97,16.55740506]
[1752782896568,15.99376894,172.02,171.95,5.81564408]
[1752782896569,15.84740506,172.0,171.98,0.71]
[1752782896871,15.84740506,172.0,171.95,5.81564408]
[1752782896872,0.14636388,171.99,171.95,21.66304914]
[1752782897053,15.99376894,171.99,171.95,0.71]
[1752782897256,15.99376894,171.99,171.93,32.22]
[1752782897257,15.84740506,171.96,171.93,32.22]
[1752782897462,0.14636388,171.95,171.93,32.22]
[1752782897857,15.84740506,171.94,171.93,32.22]
[1752782898163,15.84740506,171.94,171.92,0.1]
[1752782898369,0.14636388,171.93,171.92,0.1]
[1752782898878,15.99376894,171.93,171.92,0.1]
[1752782899461,0.14636388,171.93,171.92,0.1]
[1752782899973,32.566,171.99,171.92,0.81]
[1752782899974,15.84740506,171.96,171.92,0.81]
[1752782900277,0.14636388,171.97,171.93,16.55740506]
[1752782900454,15.99376894,171.97,171.93,0.71]
[1752782900658,0.5,171.95,171.92,0.1]
[1752782900854,0.64636388,171.95,171.92,0.81]
[1752782901170,0.5,171.95,171.93,16.55740506]
[1752782901376,0.5,171.95,171.94,48.77740506]
[1752782901574,0.14636388,172.05,172.0,15.84740506]
[1752782901748,0.03,172.1,172.01,32.93]
[1752782901749,15.99376894,172.08,172.01,32.93]
[1752782901952,15.84740506,172.05,172.01,32.22]
[1752782902166,15.99376894,172.04,172.01,32.22]
[1752782902367,15.84740506,172.03,172.01,32.22]
[1752782902571,15.99376894,172.04,172.01,32.22]
[1752782902884,15.99376894,172.08,172.03,15.84740506]
[1752782903252,15.84740506,172.07,172.02,15.84740506]
[1752782903453,0.14636388,172.06,172.02,15.84740506]
[1752782903880,15.99376894,172.06,171.99,5.81419579]
[1752782904055,15.99376894,172.06,171.92,0.1]
[1752782904056,26.0,171.95,171.92,0.1]
[1752782904253,21.66372565,171.93,171.92,0.1]
[1752782904758,22.38372565,171.93,171.92,0.1]
[1752782905279,21.80981843,171.94,171.92,0.1]
[1752782905979,15.84740506,171.93,171.92,0.1]
[1752782906390,15.99376894,171.94,171.92,0.1]
[1752782906678,9.24922403,172.01,171.93,48.06740506]
[1752782906886,15.84740506,171.98,171.93,32.22]
[1752782907061,0.14636388,171.97,171.94,0.71]
[1752782907252,15.99376894,171.97,171.94,0.71]
[1752782907671,15.84740506,171.98,171.94,0.71]
[1752782907872,15.99376894,171.97,171.94,0.71]
[1752782908574,41.84740506,172.0,171.95,16.55740506]
[1752782908767,26.0,171.99,171.95,0.71]
[1752782909074,26.0,171.99,171.94,5.81594222]
[1752782909075,26.0,171.99,171.98,15.84740506]
[1752782909286,26.0,172.0,171.98,32.93]
[1752782909495,0.14636388,172.02,171.99,16.55740506]
[1752782909783,15.84740506,172.01,171.98,32.22]
[1752782909959,15.84740506,171.99,171.93,0.71]
[1752782910277,15.84740506,171.99,171.92,0.1]
[1752782910278,15.84740506,171.94,171.92,0.1]
[1752782910478,5.81573585,171.95,171.92,0.1]
[1752782910479,15.84740506,171.93,171.92,0.1]
[1752782911664,0.14636388,171.94,171.92,0.1]
[1752782911865,15.84740506,171.93,171.92,0.1]
[1752782912364,21.66372565,171.93,171.92,0.1]
[1752782912777,22.38372565,171.93,171.92,0.1]
[1752782913091,48.38372565,171.93,171.92,0.1]
[1752782914993,36.92452713,171.93,171.86,0.06]
[1752782915164,15.84740506,171.87,171.86,0.06]
[1752782916863,16.55740506,171.87,171.86,0.06]
[1752782917080,42.55740506,171.87,171.86,0.06]
[1752782917391,26.0,171.84,171.73,0.69]
[1752782917585,15.84740506,171.77,171.73,0.69]
[1752782918059,0.14636388,171.79,171.74,0.69]
[1752782918262,15.84740506,171.79,171.75,0.69]
[1752782918464,15.84740506,171.76,171.72,41.1621]
[1752782918766,15.84740506,171.76,171.73,0.69]
[1752782919566,0.14636388,171.77,171.73,0.69]
[1752782919865,26.0,171.8,171.72,46.29545881]
[1752782919866,41.84740506,171.8,171.74,0.69]
[1752782920082,41.99376894,171.8,171.74,0.69]
[1752782920290,15.84740506,171.79,171.74,16.53740506]
[1752782920473,15.99376894,171.8,171.75,22.35982136]
[1752782920668,15.84740506,171.81,171.76,16.53740506]
[1752782920979,15.84740506,171.84,171.77,32.91]
[1752782921168,15.84740506,171.84,171.79,15.84740506]
[1752782921368,15.84740506,171.86,171.81,15.84740506]
[1752782921667,15.84740506,171.87,171.82,48.75740506]
[1752782921870,0.14636388,171.86,171.83,0.69]
[1752782922066,15.84740506,171.85,171.82,32.22]
[1752782922389,15.84740506,171.83,171.77,0.69]
[1752782922690,15.84740506,171.8,171.77,0.69]
[1752782922887,15.84740506,171.8,171.76,32.22]
[1752782923189,5.81936685,171.84,171.76,32.22]
[1752782923190,15.99376894,171.79,171.76,32.22]
[1752782923381,15.84740506,171.78,171.74,6.51246859]
[1752782923576,26.0,171.81,171.75,32.91]
[1752782923886,0.14636388,171.8,171.75,32.91]
[1752782924098,0.14636388,171.8,171.75,32.22]
[1752782924099,15.84740506,171.77,171.75,32.22]
[1752782924798,26.0,171.81,171.75,32.22]
[1752782924799,15.84740506,171.76,171.75,32.22]
[1752782925003,15.84740506,171.76,171.72,1.6587]
[1752782925175,5.82190869,171.77,171.71,32.22]
[1752782925176,15.99376894,171.75,171.71,32.22]
[1752782925370,15.84740506,171.72,171.71,32.22]
[1752782925785,15.84740506,171.72,171.68,0.1]
[1752782925998,15.99376894,171.71,171.68,0.1]
[1752782926197,15.84740506,171.69,171.68,0.1]
[1752782926576,22.52821998,171.69,171.68,0.1]
[1752782926782,48.52821998,171.69,171.68,0.1]
[1752782926978,32.68081492,171.69,171.68,0.1]
[1752782927180,48.52821998,171.69,171.68,0.1]
[1752782927387,22.52821998,171.69,171.68,0.1]
[1752782927580,26.0,171.66,171.54,5.82954412]
[1752782927789,15.84740506,171.6,171.55,0.69]
[1752782928099,0.14636388,171.59,171.55,0.69]
[1752782928405,15.84740506,171.61,171.56,0.69]
[1752782928593,0.14636388,171.63,171.6,15.84740506]
[1752782928794,26.14636388,171.67,171.61,0.69]
[1752782929176,15.84740506,171.68,171.61,0.69]
[1752782929501,15.84740506,171.7,171.65,15.84740506]
[1752782929676,0.14636388,171.72,171.67,15.84740506]
[1752782929879,15.84740506,171.73,171.66,0.69]
[1752782930080,15.84740506,171.73,171.67,15.84740506]
[1752782930309,0.14636388,171.75,171.69,15.84740506]
[1752782930604,15.99376894,171.75,171.71,5.82377263]
[1752782930777,15.99376894,171.75,171.71,6.51377263]
[1752782930980,15.84740506,171.74,171.71,5.82377263]
[1752782931196,15.84740506,171.74,171.71,0.69]
[1752782931402,0.14636388,171.77,171.71,0.69]
[1752782931580,15.84740506,171.76,171.71,48.77740506]
[1752782931781,0.14636388,171.75,171.71,0.69]
[1752782932101,0.14636388,171.75,171.72,16.53740506]
[1752782932283,15.84740506,171.78,171.72,16.53740506]
[1752782932604,0.14636388,171.77,171.74,5.82275532]
[1752782933097,0.14636388,171.77,171.7,46.79966964]
[1752782933098,0.14636388,171.77,171.71,6.51377263]
[1752782933301,0.5,171.76,171.71,22.36117769]
[1752782933508,15.84740506,171.78,171.74,0.69]
[1752782933683,0.14636388,171.77,171.74,0.69]
[1752782933883,15.99376894,171.77,171.72,15.84740506]
[1752782934084,15.99376894,171.77,171.73,32.24]
[1752782934291,15.84740506,171.76,171.71,0.69]
[1752782934522,15.84740506,171.72,171.65,6.51580833]
[1752782934801,0.14636388,171.75,171.65,6.51580833]
[1752782934802,15.84740506,171.69,171.66,32.24]
[1752782935002,15.99376894,171.68,171.66,32.24]
[1752782935259,15.99376894,171.68,171.65,0.69]
[1752782935409,15.84740506,171.66,171.6,48.08740506]
[1752782935710,0.14636388,171.68,171.63,15.84740506]
[1752782935895,15.84740506,171.66,171.61,0.69]
[1752782936077,15.99376894,171.65,171.61,0.69]
[1752782936278,15.99376894,171.65,171.62,0.69]
[1752782936494,15.99376894,171.65,171.6,5.82732576]
[1752782936704,15.99376894,171.65,171.6,6.51732576]
[1752782937306,15.84740506,171.64,171.6,5.82732576]
[1752782937508,0.14636388,171.67,171.62,15.84740506]
[1752782937690,15.84740506,171.66,171.62,0.69]
[1752782937891,0.14636388,171.65,171.6,5.82732576]
[1752782938093,0.14636388,171.65,171.56,1.5251]
[1752782938094,15.84740506,171.62,171.58,32.93]
[1752782938306,15.99376894,171.64,171.59,16.53740506]
[1752782938484,0.14636388,171.64,171.6,0.69]
[1752782938691,15.84740506,171.65,171.6,6.51740587]
[1752782938886,0.14636388,171.64,171.58,38.06816206]
[1752782939092,0.5,171.63,171.59,15.84740506]
[1752782939299,0.5,171.63,171.59,0.69]
[1752782939300,0.64636388,171.63,171.59,0.69]
[1752782939587,15.84740506,171.62,171.58,32.24]
[1752782939993,0.71,171.62,171.58,32.24]
[1752782940304,0.71,171.64,171.58,5.82804753]
[1752782940506,0.14636388,171.66,171.59,32.24]
[1752782940685,15.84740506,171.65,171.6,21.67491088]
[1752782940888,15.84740506,171.63,171.59,32.93]
[1752782941208,0.14636388,171.62,171.58,15.84740506]
[1752782941382,0.14636388,171.62,171.59,32.24]
[1752782941580,0.14636388,171.65,171.59,48.77740506]
[1752782941890,0.14636388,171.71,171.63,15.84740506]
[1752782942206,0.14636388,171.71,171.64,32.24]
[1752782942408,15.84740506,171.65,171.62,32.24]
[1752782942589,0.14636388,171.67,171.62,32.24]
[1752782942781,15.84740506,171.65,171.62,38.0667367]
[1752782942996,0.14636388,171.64,171.62,32.24]
[1752782943203,15.84740506,171.63,171.58,32.93]
[1752782943385,15.84740506,171.63,171.59,0.69]
[1752782943585,15.99376894,171.62,171.58,32.24]
[1752782944207,0.5,171.64,171.6,15.84740506]
[1752782944401,0.14636388,171.68,171.62,15.84740506]
[1752782944599,15.84740506,171.67,171.63,32.24]
[1752782944908,0.14636388,171.66,171.63,38.75646642]
[1752782945096,0.14636388,171.66,171.64,0.69]
[1752782945402,0.14636388,171.66,171.64,32.24]
[1752782945718,5.82505001,171.68,171.64,32.24]
[1752782945719,15.99376894,171.67,171.64,32.24]
[1752782946110,15.84740506,171.66,171.64,32.24]
[1752782946282,0.14636388,171.65,171.62,32.24]
[1752782946483,15.99376894,171.67,171.63,0.69]
[1752782946678,0.14636388,171.67,171.64,5.82614775]
[1752782946903,0.65,171.74,171.65,0.69]
[1752782947205,5.96909163,171.75,171.65,0.69]
[1752782947206,15.99376894,171.73,171.66,32.24]
[1752782947413,15.84740506,171.71,171.66,32.93]
[1752782947632,0.14636388,171.7,171.66,32.93]
[1752782947790,15.99376894,171.7,171.66,32.93]
[1752782947992,15.84740506,171.68,171.63,6.51648578]
[1752782948307,15.99376894,171.67,171.64,32.24]
[1752782948818,15.84740506,171.66,171.64,32.24]
[1752782949030,15.99376894,171.65,171.6,0.69]
[1752782949197,15.84740506,171.62,171.61,32.24]
[1752782949603,15.84740506,171.63,171.61,32.24]
[1752782949805,0.14636388,171.62,171.61,32.24]
[1752782950019,15.99376894,171.62,171.56,5.82876402]
[1752782950273,15.84740506,171.6,171.57,32.93]
[1752782950514,15.84740506,171.6,171.57,32.24]
[1752782950718,15.84740506,171.61,171.56,32.24]
[1752782950899,0.14636388,171.6,171.56,38.06863927]
[1752782951111,15.99376894,171.6,171.56,32.24]
[1752782951416,0.79636388,171.6,171.56,32.24]
[1752782951590,15.84740506,171.57,171.56,32.24]
[1752782951989,16.49740506,171.57,171.54,0.06]
[1752782952322,0.14636388,171.56,171.54,0.06]
[1752782952506,15.99376894,171.56,171.54,0.06]
[1752782952709,0.14636388,171.56,171.54,0.06]
[1752782952897,0.65,171.6,171.54,0.06]
[1752782952898,0.14636388,171.59,171.55,0.69]
[1752782953219,15.84740506,171.56,171.54,32.3]
[1752782953406,16.64376894,171.55,171.54,0.06]
[1752782954223,17.14376894,171.55,171.54,0.06]
[1752782954429,0.64636388,171.55,171.54,0.06]
[1752782954608,0.5,171.55,171.54,0.06]
[1752782954800,0.5,171.55,171.54,0.75]
[1752782955036,0.5,171.55,171.54,0.06]
[1752782955334,22.97297325,171.55,171.54,0.06]
[1752782955531,0.64636388,171.55,171.54,0.06]
[1752782955731,0.5,171.55,171.54,0.06]
[1752782955911,0.5,171.55,171.54,54.66694918]
[1752782956115,0.5,171.55,171.54,32.99]
[1752782956701,0.5,171.55,171.54,38.81954412]
[1752782956906,0.14636388,171.58,171.54,32.99]
[1752782957104,15.84740506,171.59,171.55,0.69]
[1752782957330,0.14636388,171.58,171.55,0.69]
[1752782958027,5.82723979,171.61,171.56,0.69]
[1752782958028,0.14636388,171.6,171.56,0.69]
[1752782958208,15.99376894,171.6,171.56,0.69]
[1752782958714,15.84740506,171.62,171.57,16.53740506]
[1752782958919,0.14636388,171.61,171.58,32.24]
[1752782959210,15.84740506,171.6,171.58,32.24]
[1752782959419,0.14636388,171.61,171.58,32.24]
[1752782959420,15.99376894,171.61,171.58,32.24]
[1752782959627,0.14636388,171.63,171.59,16.53740506]
[1752782959809,0.14636388,171.62,171.58,38.06814261]
[1752782960011,15.99376894,171.62,171.58,38.75814261]
[1752782960236,15.84740506,171.61,171.58,38.75814261]
[1752782960441,15.99376894,171.6,171.58,32.24]
[1752782961217,0.14636388,171.6,171.58,32.24]
[1752782961416,15.84740506,171.6,171.58,32.24]
[1752782962369,15.99376894,171.64,171.59,16.53740506]
[1752782962649,15.84740506,171.63,171.6,0.69]
[1752782963062,15.99376894,171.62,171.58,32.24]
[1752782963249,0.14636388,171.62,171.58,32.24]
[1752782963550,15.99376894,171.62,171.58,32.93]
[1752782963752,15.84740506,171.59,171.58,32.24]
[1752782963926,16.49740506,171.59,171.55,32.24]
[1752782964129,15.84740506,171.56,171.55,32.24]
[1752782964355,15.84740506,171.57,171.55,32.24]
[1752782964733,0.14636388,171.56,171.55,32.24]
[1752782964941,26.0,171.59,171.55,32.24]
[1752782964942,15.99376894,171.58,171.55,32.24]
[1752782965268,15.84740506,171.57,171.55,32.24]
[1752782965423,15.99376894,171.56,171.55,32.24]
[1752782965923,0.14636388,171.56,171.55,32.24]
[1752782966228,15.99376894,171.58,171.55,32.24]
[1752782966419,0.14636388,171.58,171.55,32.24]
[1752782966625,0.14636388,171.58,171.55,38.0691656]
[1752782966844,15.84740506,171.59,171.56,0.69]
[1752782967942,0.14636388,171.61,171.56,5.82873569]
[1752782968133,15.99376894,171.64,171.58,15.84740506]
[1752782968445,15.84740506,171.64,171.59,48.77740506]
[1752782968650,15.84740506,171.66,171.6,0.69]
[1752782968948,0.14636388,171.67,171.63,15.84740506]
[1752782969149,15.87740506,171.68,171.64,32.93]
[1752782969348,15.99376894,171.67,171.64,32.93]
[1752782969556,15.99376894,171.67,171.64,32.24]
[1752782969730,16.49740506,171.66,171.57,16.78468397]
[1752782970052,5.97223444,171.65,171.58,32.24]
[1752782970460,15.84740506,171.61,171.58,32.24]
[1752782970749,15.84740506,171.62,171.58,32.93]
[1752782970952,15.84740506,171.62,171.59,0.69]
[1752782972253,148.3,171.65,171.59,0.69]
[1752782972428,15.84740506,171.66,171.61,15.84740506]
[1752782972636,0.03,171.68,171.62,49.05740506]
[1752782973034,0.03,171.68,171.64,15.84740506]
[1752782973234,0.03,171.68,171.65,32.48]
[1752782973452,0.03,171.68,171.65,33.19]
[1752782973752,0.03,171.68,171.67,21.67253466]
[1752782974143,0.03,171.75,171.67,37.52787164]
[1752782974359,0.03,171.75,171.71,15.84740506]
[1752782974561,0.03,171.75,171.72,32.48]
[1752782974753,0.03,171.75,171.72,33.19]
[1752782975652,0.03,171.75,171.74,21.67016038]
[1752782975855,30.03,171.75,171.74,21.67016038]
[1752782976054,0.03,171.75,171.74,22.38016038]
[1752782976249,0.03,171.75,171.74,0.71]
[1752782976435,0.03,171.75,171.74,48.97740506]
[1752782977342,0.03,171.75,171.74,0.71]
[1752782977539,0.03,171.75,171.74,48.97740506]
[1752782977746,0.03,171.75,171.74,54.80016038]
[1752782978049,0.03,171.75,171.74,48.97740506]
[1752782978562,0.03,171.75,171.74,32.42]
[1752782978769,15.87740506,171.75,171.74,32.42]
[1752782978971,16.57740506,171.75,171.74,32.42]
[1752782979266,16.57740506,171.75,171.66,6.53521382]
[1752782979462,15.84740506,171.72,171.67,15.84740506]
[1752782979666,15.84740506,171.71,171.68,32.44]
[1752782979965,15.84740506,171.69,171.64,23.25055948]
[1752782980161,15.84740506,171.69,171.65,33.15]
[1752782980667,5.82385442,171.71,171.65,33.15]
[1752782980869,15.84740506,171.7,171.66,0.71]
[1752782981069,15.84740506,171.73,171.68,15.84740506]
[1752782981279,15.84740506,171.73,171.69,33.09]
[1752782981564,15.84740506,171.7,171.64,0.71]
[1752782981754,5.82377263,171.71,171.67,32.38]
[1752782981948,0.7,171.7,171.67,32.38]
[1752782982155,0.7,171.69,171.64,32.38]
[1752782982958,15.84740506,171.65,171.62,0.06]
[1752782983155,26.7,171.68,171.63,32.36]
[1752782983361,15.84740506,171.64,171.63,32.36]
[1752782983558,16.54740506,171.64,171.63,32.36]
[1752782983771,16.54740506,171.64,171.62,0.06]
[1752782983772,5.82648721,171.63,171.62,0.06]
[1752782983965,5.82648721,171.63,171.62,1e-08]
[1752782984170,6.52648721,171.63,171.62,1e-08]
[1752782985060,22.37389227,171.63,171.62,1e-08]
[1752782985272,21.67389227,171.63,171.62,1e-08]
[1752782985665,15.84740506,171.63,171.62,1e-08]
[1752782986354,16.54740506,171.63,171.62,1e-08]
[1752782987571,26.0,171.6,171.55,0.06]
[1752782987792,21.67626959,171.56,171.55,0.06]
[1752782988170,22.37626959,171.56,171.55,0.06]
[1752782988378,22.37626959,171.56,171.55,1e-08]
[1752782988551,6.52886453,171.56,171.55,1e-08]
[1752782988752,21.67626959,171.56,171.55,1e-08]
[1752782989071,5.82856668,171.57,171.55,1e-08]
[1752782989249,41.84740506,171.56,171.55,1e-08]
[1752782989850,26.0,171.56,171.55,1e-08]
[1752782990070,15.84740506,171.58,171.55,1e-08]
[1752782990278,5.82614775,171.64,171.56,15.84740506]
[1752782990468,15.84740506,171.59,171.55,33.51000001]
[1752782990673,15.84740506,171.59,171.56,0.71]
[1752782990869,15.84740506,171.58,171.55,32.80000001]
[1752782991066,26.0,171.61,171.55,33.51000001]
[1752782991273,15.84740506,171.57,171.55,32.80000001]
[1752782991579,15.84740506,171.56,171.55,32.80000001]
[1752782992983,31.82784544,171.59,171.55,38.6291034]
[1752782992984,26.0,171.59,171.55,38.6291034]
[1752782993160,15.84740506,171.59,171.56,0.71]
[1752782993357,15.84740506,171.62,171.57,16.55740506]
[1752782993559,0.7,171.66,171.59,15.84740506]
[1752782993775,15.84740506,171.61,171.6,32.76]
[1752782993978,5.82546895,171.66,171.6,32.76]
[1752782994176,15.84740506,171.61,171.58,33.51]
[1752782994376,15.84740506,171.59,171.55,0.71000001]
[1752782994572,26.0,171.63,171.55,6.53919006]
[1752782994870,0.7,171.64,171.55,33.51000001]
[1752782995076,15.84740506,171.59,171.55,33.51000001]
[1752782995258,15.84740506,171.58,171.55,33.51000001]
[1752782995454,26.0,171.63,171.56,0.71]
[1752782995658,15.84740506,171.57,171.55,32.80000001]
[1752782995880,5.8284313,171.58,171.55,32.80000001]
[1752782996065,15.84740506,171.56,171.55,32.80000001]
[1752782996376,15.84740506,171.58,171.55,32.80000001]
[1752782996581,15.84740506,171.59,171.56,0.71]
[1752782996766,26.0,171.64,171.56,0.71]
[1752782997083,15.84740506,171.6,171.56,0.71]
[1752782997477,15.84740506,171.6,171.57,32.78]
[1752782997679,15.84740506,171.62,171.58,0.71]
[1752782997879,15.84740506,171.61,171.58,0.71]
[1752782998074,15.84740506,171.6,171.57,32.78]
[1752782998380,5.82721051,171.61,171.57,32.78]
[1752782998600,15.84740506,171.58,171.57,32.78]
[1752782999386,15.84740506,171.6,171.57,33.49]
[1752782999587,31.8268499,171.62,171.57,33.49]
[1752782999784,15.84740506,171.6,171.57,33.49]
[1752782999981,15.84740506,171.61,171.58,0.71]
[1752783000291,15.84740506,171.6,171.57,32.78]
[1752783000586,15.84740506,171.58,171.56,32.72]
[1752783000760,46.3939167,171.62,171.56,32.72]
[1752783000761,15.84740506,171.57,171.56,32.72]
[1752783000968,16.54740506,171.57,171.55,1e-08]
[1752783001164,15.84740506,171.56,171.55,1e-08]
[1752783001375,26.0,171.58,171.55,1e-08]
[1752783001588,16.54740506,171.56,171.55,1e-08]
[1752783001972,22.37626959,171.56,171.55,1e-08]